fUST/lending_fUST_20240902
["ID","MTS","AMOUNT","RATE_DAILY","PERIOD"]
[336841045,1725206471225,157.292438,0.00014247,2]
[336841049,1725206618524,302.27461649,0.0002,2]
[336841051,1725206744249,302.24446742,0.0002,2]
[336841059,1725206995910,303.02884887,0.0002,2]
[336841081,1725207032593,-157.292438,0.00021467,2]
[336841083,1725207032602,-250.0,0.00021472,2]
[336841085,1725207032612,-250.0,0.00021531,2]
[336841087,1725207032621,-250.0,0.0002159,2]
[336841089,1725207032635,-178.542276,0.0002164,2]
[336841091,1725207032646,-1825.515286,0.00021642,2]
[336841094,1725207032658,-1174.484714,0.00021642,2]
[336841096,1725207032667,-250.0,0.00021648,2]
[336841099,1725207032677,-250.0,0.00021707,2]
[336841102,1725207032687,-250.0,0.00021766,2]
[336841105,1725207032696,-250.0,0.00021825,2]
[336841108,1725207032706,-250.0,0.00021884,2]
[336841110,1725207032715,-250.0,0.00021943,2]
[336841112,1725207032725,-250.0,0.00022002,2]
[336841114,1725207032735,-250.0,0.00022061,2]
[336841116,1725207032745,-250.0,0.00022119,2]
[336841118,1725207032755,-250.0,0.00022178,2]
[336841120,1725207032765,-250.0,0.00022237,2]
[336841122,1725207032779,-300.0,0.00022239,2]
[336841124,1725207032789,-300.0,0.00022239,2]
[336841126,1725207032799,-3037.12918517,0.0002224,2]
[336841128,1725207032808,-216.782186,0.00022284,2]
[336841130,1725207032819,-250.0,0.00022296,2]
[336841132,1725207032829,-250.0,0.00022355,2]
[336841134,1725207032838,-250.0,0.00022414,2]
[336841136,1725207032848,-3654.86279453,0.00022432,2]
[336841138,1725207032860,-250.0,0.00022473,2]
[336841140,1725207032869,-24900.0,0.00022529,2]
[336841142,1725207032879,-250.0,0.00022532,2]
[336841144,1725207032889,-250.0,0.0002259,2]
[336841146,1725207032900,-183.502782,0.00023115,2]
[336841148,1725207032910,-379.574733,0.00023836,2]
[336841150,1725207032920,-465.00833729,0.00023918,2]
[336841152,1725207032930,-26000.0,0.00024,2]
[336841154,1725207032940,-390.0,0.00024161,2]
[336841156,1725207032950,-4266.10912891,0.00024336,2]
[336841158,1725207032961,-1260.41327242,0.00024447,2]
[336841160,1725207032971,-420.0,0.00024463,2]
[336841162,1725207032980,-150.0,0.00024469,2]
[336841164,1725207032990,-1260.41327241,0.00024475,2]
[336841166,1725207033000,-1000.0,0.000245,2]
[336841169,1725207033010,-1260.41327241,0.00024502,2]
[336841171,1725207033020,-153.0,0.00024512,2]
[336841173,1725207033029,-1260.41327241,0.0002453,2]
[336841175,1725207033040,-1311.71,0.00024537,3]
[336841177,1725207033050,-655.85,0.00024537,3]
[336841178,1725207033059,-327.93,0.00024537,3]
[336841180,1725207033070,-163.96,0.00024537,3]
[336841182,1725207033079,-500.0,0.00024546,2]
[336841184,1725207033088,-500.0,0.00024546,2]
[336841186,1725207033099,-500.0,0.00024546,2]
[336841188,1725207033109,-500.0,0.00024546,2]
[336841190,1725207033120,-500.0,0.00024546,2]
[336841193,1725207033131,-500.0,0.00024546,2]
[336841195,1725207033141,-500.0,0.00024546,2]
[336841197,1725207033153,-500.0,0.00024546,2]
[336841199,1725207033163,-208.09937938,0.00024546,2]
[336841201,1725207033172,-500.0,0.00024546,2]
[336841203,1725207033181,-500.0,0.00024546,2]
[336841205,1725207033191,-500.0,0.00024546,2]
[336841207,1725207033202,-344.92037082,0.00024546,2]
[336841209,1725207033212,-500.0,0.00024546,2]
[336841211,1725207033222,-500.0,0.00024546,2]
[336841213,1725207033232,-500.0,0.00024546,2]
[336841215,1725207033247,-500.0,0.00024546,2]
[336841217,1725207033257,-500.0,0.00024546,2]
[336841219,1725207033268,-500.0,0.00024546,2]
[336841222,1725207033285,-500.0,0.00024546,2]
[336841224,1725207033295,-2000.0,0.00024547,2]
[336841226,1725207033305,-27996.3039711,0.00024547,3]
[336841228,1725207033316,-443.7010837,0.00024548,2]
[336841230,1725207033326,-299.2987421,0.00024548,2]
[336841232,1725207033335,-4266.10912891,0.00024555,2]
[336841234,1725207033346,-4319.65216897,0.00024557,2]
[336841236,1725207033357,-86298.57632875,0.00024557,3]
[336841238,1725207033367,-1260.41327241,0.00024557,2]
[336841240,1725207033378,-13998.1519856,0.00024559,3]
[336841242,1725207033389,-20036.4419762,0.00024569,3]
[336841244,1725207033404,-150.112233,0.000246,5]
[336841246,1725207033415,-150.112233,0.000246,3]
[336841248,1725207033426,-150.112233,0.000246,4]
[336841250,1725207033435,-13998.1519856,0.00024637,3]
[336841252,1725207033445,-170.13426912,0.00024646,2]
[336841254,1725207033456,-319.71266811,0.00024646,2]
[336841256,1725207033465,-500.0,0.00024646,2]
[336841258,1725207033474,-500.0,0.00024646,2]
[336841260,1725207033484,-500.0,0.00024646,2]
[336841262,1725207033494,-214.90811064,0.00024646,2]
[336841264,1725207033503,-500.0,0.00024646,2]
[336841266,1725207033513,-500.0,0.00024646,2]
[336841268,1725207033523,-500.0,0.00024646,2]
[336841270,1725207033533,-500.0,0.00024646,2]
[336841272,1725207033542,-500.0,0.00024646,2]
[336841274,1725207033552,-500.0,0.00024646,2]
[336841276,1725207033561,-500.0,0.00024646,2]
[336841278,1725207033571,-500.0,0.00024646,2]
[336841280,1725207033580,-520.61611784,0.00024646,2]
[336841282,1725207033591,-500.0,0.00024646,2]
[336841284,1725207033601,-564.43128249,0.00024646,2]
[336841286,1725207033610,-500.0,0.00024646,2]
[336841288,1725207033620,-13503.54757783,0.00024647,11]
[336841290,1725207033630,-125983.36787,0.00024647,3]
[336841292,1725207033639,-500.0,0.00024657,2]
[336841294,1725207033653,-500.0,0.00024657,2]
[336841296,1725207033663,-500.0,0.00024657,2]
[336841298,1725207033674,-227.78746043,0.00024657,2]
[336841300,1725207033683,-500.75969453,0.00024657,2]
[336841302,1725207033694,-261.86648806,0.00024657,2]
[336841304,1725207033703,-500.0,0.00024657,2]
[336841306,1725207033712,-500.0,0.00024657,2]
[336841308,1725207033725,-500.0,0.00024657,2]
[336841310,1725207033735,-500.0,0.00024657,2]
[336841312,1725207033745,-500.0,0.00024657,2]
[336841314,1725207033755,-500.0,0.00024657,2]
[336841316,1725207033764,-500.0,0.00024657,2]
[336841318,1725207033779,-500.0,0.00024657,2]
[336841320,1725207033790,-500.0,0.00024657,2]
[336841322,1725207033800,-500.0,0.00024657,2]
[336841325,1725207033810,-500.0,0.00024657,2]
[336841327,1725207033820,-504.18658257,0.00024657,2]
[336841329,1725207033829,-500.0,0.00024657,2]
[336841331,1725207033839,-500.0,0.00024657,2]
[336841332,1725207033850,-546.9798973,0.00024657,2]
[336841335,1725207033863,-281.61844496,0.00024657,2]
[336841337,1725207033874,-500.0,0.00024657,2]
[336841339,1725207033884,-500.0,0.00024657,2]
[336841341,1725207033896,-500.0,0.00024657,2]
[336841343,1725207033906,-500.0,0.00024657,2]
[336841345,1725207033915,-739.19,0.00024657,2]
[336841347,1725207033925,-500.0,0.00024657,2]
[336841349,1725207033935,-500.0,0.00024657,2]
[336841351,1725207033944,-224.54921184,0.00024657,2]
[336841353,1725207033954,-500.0,0.00024657,2]
[336841355,1725207033963,-185.95936535,0.00024657,2]
[336841357,1725207033973,-500.0,0.00024657,2]
[336841359,1725207033982,-500.0,0.00024657,2]
[336841361,1725207033992,-503.59389083,0.00024657,2]
[336841363,1725207034002,-500.0,0.00024657,2]
[336841365,1725207034011,-500.0,0.00024657,2]
[336841367,1725207034021,-500.0,0.00024657,2]
[336841369,1725207034030,-503.92317938,0.00024657,2]
[336841371,1725207034040,-500.0,0.00024657,2]
[336841373,1725207034050,-500.0,0.00024657,2]
[336841375,1725207034061,-500.0,0.00024657,2]
[336841377,1725207034071,-500.0,0.00024657,2]
[336841379,1725207034081,-500.0,0.00024657,2]
[336841381,1725207034090,-425.29799994,0.00024657,2]
[336841383,1725207034100,-500.0,0.00024657,2]
[336841385,1725207034110,-500.0,0.00024657,2]
[336841387,1725207034120,-500.0,0.00024657,2]
[336841389,1725207034129,-546.99,0.00024657,2]
[336841391,1725207034138,-500.0,0.00024657,2]
[336841393,1725207034149,-500.0,0.00024657,2]
[336841395,1725207034159,-500.0,0.00024657,2]
[336841397,1725207034169,-618.53,0.00024657,2]
[336841399,1725207034179,-500.0,0.00024657,2]
[336841401,1725207034189,-500.0,0.00024657,2]
[336841403,1725207034198,-500.0,0.00024657,2]
[336841405,1725207034208,-500.0,0.00024657,2]
[336841407,1725207034218,-500.0,0.00024657,2]
[336841409,1725207034227,-500.0,0.00024657,2]
[336841411,1725207034236,-500.0,0.00024657,2]
[336841413,1725207034246,-500.0,0.00024657,2]
[336841415,1725207034256,-348.95,0.00024657,2]
[336841417,1725207034265,-772.79,0.00024657,2]
[336841419,1725207034275,-500.0,0.00024657,2]
[336841421,1725207034284,-500.0,0.00024657,2]
[336841423,1725207034294,-500.0,0.00024657,2]
[336841425,1725207034304,-500.0,0.00024657,2]
[336841427,1725207034314,-504.7286352,0.00024657,2]
[336841429,1725207034323,-542.6,0.00024657,2]
[336841431,1725207034333,-500.0,0.00024657,2]
[336841433,1725207034343,-1094.31,0.00024657,2]
[336841435,1725207034352,-500.0,0.00024657,2]
[336841437,1725207034362,-500.0,0.00024657,2]
[336841440,1725207034372,-503.81,0.00024657,2]
[336841442,1725207034382,-500.0,0.00024657,2]
[336841444,1725207034391,-500.0,0.00024657,2]
[336841445,1725207034402,-500.0,0.00024657,2]
[336841447,1725207034411,-887.59,0.00024657,2]
[336841449,1725207034421,-500.0,0.00024657,2]
[336841451,1725207034430,-500.0,0.00024657,2]
[336841454,1725207034439,-500.0,0.00024657,2]
[336841456,1725207034449,-500.0,0.00024657,2]
[336841458,1725207034458,-652.02,0.00024657,2]
[336841460,1725207034467,-500.0,0.00024657,2]
[336841461,1725207034477,-730.49,0.00024657,2]
[336841464,1725207034487,-500.0,0.00024657,2]
[336841466,1725207034496,-561.53098103,0.00024657,2]
[336841468,1725207034506,-500.0,0.00024657,2]
[336841470,1725207034515,-500.0,0.00024657,2]
[336841472,1725207034525,-500.0,0.00024657,2]
[336841474,1725207034535,-500.0,0.00024657,2]
[336841476,1725207034544,-500.0,0.00024657,2]
[336841478,1725207034555,-500.0,0.00024657,2]
[336841480,1725207034564,-500.0,0.00024657,2]
[336841482,1725207034573,-500.0,0.00024657,2]
[336841484,1725207034582,-500.0,0.00024657,2]
[336841486,1725207034591,-500.0,0.00024657,2]
[336841488,1725207034601,-500.0,0.00024657,2]
[336841490,1725207034610,-500.0,0.00024657,2]
[336841492,1725207034619,-500.0,0.00024657,2]
[336841494,1725207034629,-500.0,0.00024657,2]
[336841496,1725207034639,-500.0,0.00024657,2]
[336841498,1725207034651,-1048.15,0.00024657,2]
[336841499,1725207034662,-500.0,0.00024657,2]
[336841500,1725207034671,-500.0,0.00024657,2]
[336841501,1725207034680,-607.99165756,0.00024657,2]
[336841502,1725207034690,-500.0,0.00024657,2]
[336841503,1725207034699,-5246.83,0.00024657,2]
[336841504,1725207034709,-500.0,0.00024657,2]
[336841505,1725207034718,-500.0,0.00024657,2]
[336841506,1725207034727,-500.0,0.00024657,2]
[336841507,1725207034737,-500.0,0.00024657,2]
[336841508,1725207034746,-500.0,0.00024657,2]
[336841509,1725207034755,-500.0,0.00024657,2]
[336841510,1725207034765,-500.0,0.00024657,2]
[336841511,1725207034776,-503.37850907,0.00024657,2]
[336841512,1725207034788,-500.0,0.00024657,2]
[336841513,1725207034798,-500.0,0.00024657,2]
[336841514,1725207034808,-500.0,0.00024657,2]
[336841515,1725207034819,-501.33450726,0.00024657,2]
[336841516,1725207034829,-500.0,0.00024657,2]
[336841517,1725207034838,-500.0,0.00024657,2]
[336841518,1725207034848,-1555.58,0.00024657,2]
[336841519,1725207034858,-508.31,0.00024657,2]
[336841520,1725207034868,-500.0,0.00024657,2]
[336841521,1725207034877,-500.0,0.00024657,2]
[336841522,1725207034887,-500.0,0.00024657,2]
[336841523,1725207035054,-548.27,0.00024657,2]
[336841524,1725207035064,-500.0,0.00024657,2]
[336841525,1725207035074,-500.0,0.00024657,2]
[336841526,1725207035083,-500.0,0.00024657,2]
[336841527,1725207035093,-500.0,0.00024657,2]
[336841528,1725207035103,-500.0,0.00024657,2]
[336841530,1725207035112,-500.0,0.00024657,2]
[336841531,1725207035122,-301.22791821,0.00024657,2]
[336841532,1725207035133,-500.0,0.00024657,2]
[336841533,1725207035142,-392.3411777,0.00024657,2]
[336841534,1725207035156,-426.19663222,0.00024657,2]
[336841535,1725207035166,-500.0,0.00024657,2]
[336841536,1725207035175,-583.54,0.00024657,2]
[336841537,1725207035185,-500.0,0.00024657,2]
[336841538,1725207035194,-535.77,0.00024657,2]
[336841539,1725207035205,-877.15,0.00024657,2]
[336841540,1725207035214,-500.0,0.00024657,2]
[336841541,1725207035223,-506.51235212,0.00024657,2]
[336841542,1725207035233,-888.74,0.00024657,2]
[336841543,1725207035242,-500.0,0.00024657,2]
[336841544,1725207035251,-500.0,0.00024657,2]
[336841545,1725207035260,-500.0,0.00024657,2]
[336841546,1725207035270,-502.06823551,0.00024657,2]
[336841547,1725207035279,-500.0,0.00024657,2]
[336841548,1725207035289,-500.0,0.00024657,2]
[336841549,1725207035298,-500.0,0.00024657,2]
[336841550,1725207035307,-500.0,0.00024657,2]
[336841551,1725207035317,-500.0,0.00024657,2]
[336841552,1725207035327,-676.84,0.00024657,2]
[336841553,1725207035336,-500.0,0.00024657,2]
[336841554,1725207035346,-500.0,0.00024657,2]
[336841555,1725207035357,-500.0,0.00024657,2]
[336841556,1725207035368,-500.0,0.00024657,2]
[336841557,1725207035378,-555.35547919,0.00024657,2]
[336841558,1725207035387,-500.0,0.00024657,2]
[336841559,1725207035399,-503.37685167,0.00024657,2]
[336841560,1725207035409,-502.10505817,0.00024657,2]
[336841561,1725207035418,-500.0,0.00024657,2]
[336841562,1725207035428,-500.0,0.00024657,2]
[336841563,1725207035437,-500.0,0.00024657,2]
[336841564,1725207035447,-500.0,0.00024657,2]
[336841565,1725207035456,-500.0,0.00024657,2]
[336841566,1725207035465,-961.75,0.00024657,2]
[336841567,1725207035474,-500.0,0.00024657,2]
[336841568,1725207035484,-500.0,0.00024657,2]
[336841569,1725207035494,-888.46,0.00024657,2]
[336841570,1725207035503,-206.28970598,0.00024657,2]
[336841571,1725207035513,-500.0,0.00024657,2]
[336841572,1725207035522,-510.3445711,0.00024657,2]
[336841573,1725207035532,-500.0,0.00024657,2]
[336841574,1725207035543,-502.43955749,0.00024657,2]
[336841575,1725207035555,-500.0,0.00024657,2]
[336841576,1725207035565,-500.0,0.00024657,2]
[336841577,1725207035575,-500.0,0.00024657,2]
[336841578,1725207035584,-500.0,0.00024657,2]
[336841579,1725207035594,-501.14388475,0.00024657,2]
[336841580,1725207035603,-500.0,0.00024657,2]
[336841581,1725207035614,-500.0,0.00024657,2]
[336841582,1725207035623,-580.5,0.00024657,2]
[336841583,1725207035632,-500.0,0.00024657,2]
[336841584,1725207035642,-500.0,0.00024657,2]
[336841585,1725207035654,-803.99,0.00024657,2]
[336841586,1725207035664,-500.0,0.00024657,2]
[336841587,1725207035674,-500.0,0.00024657,2]
[336841588,1725207035685,-500.0,0.00024657,2]
[336841589,1725207035696,-500.0,0.00024657,2]
[336841590,1725207035706,-500.0,0.00024657,2]
[336841591,1725207035716,-500.0,0.00024657,2]
[336841592,1725207035727,-1643.64,0.00024657,2]
[336841593,1725207035738,-694.92,0.00024657,2]
[336841594,1725207035749,-500.0,0.00024657,2]
[336841595,1725207035759,-500.0,0.00024657,2]
[336841596,1725207035768,-500.0,0.00024657,2]
[336841597,1725207035780,-1085.5,0.00024657,2]
[336841598,1725207035790,-500.0,0.00024657,2]
[336841599,1725207035800,-500.0,0.00024657,2]
[336841600,1725207035809,-522.65137708,0.00024657,2]
[336841601,1725207035819,-500.0,0.00024657,2]
[336841602,1725207035829,-500.0,0.00024657,2]
[336841603,1725207035838,-500.0,0.00024657,2]
[336841604,1725207035848,-500.0,0.00024657,2]
[336841605,1725207035861,-500.0,0.00024657,2]
[336841606,1725207035870,-500.0,0.00024657,2]
[336841607,1725207035879,-500.83523151,0.00024657,2]
[336841608,1725207035889,-500.0,0.00024657,2]
[336841609,1725207035900,-500.0,0.00024657,2]
[336841610,1725207035909,-211.61080011,0.00024657,2]
[336841611,1725207035919,-500.0,0.00024657,2]
[336841612,1725207035928,-500.0,0.00024657,2]
[336841613,1725207035937,-500.0,0.00024657,2]
[336841614,1725207035948,-578.62679643,0.00024657,2]
[336841615,1725207035959,-500.0,0.00024657,2]
[336841616,1725207035969,-500.0,0.00024657,2]
[336841617,1725207035978,-500.0,0.00024657,2]
[336841618,1725207035988,-500.0,0.00024657,2]
[336841619,1725207035997,-503.05168924,0.00024657,2]
[336841620,1725207036007,-500.0,0.00024657,2]
[336841621,1725207036016,-2222.66,0.00024657,2]
[336841622,1725207036026,-621.21,0.00024657,2]
[336841623,1725207036037,-500.0,0.00024657,2]
[336841624,1725207036046,-356.18264387,0.00024657,2]
[336841625,1725207036056,-500.0,0.00024657,2]
[336841626,1725207036066,-500.0,0.00024657,2]
[336841627,1725207036075,-500.0,0.00024657,2]
[336841628,1725207036086,-500.78699706,0.00024657,2]
[336841629,1725207036097,-200.0,0.00024657,2]
[336841630,1725207036108,-500.0,0.00024657,2]
[336841631,1725207036118,-500.0,0.00024657,2]
[336841632,1725207036127,-500.0,0.00024657,2]
[336841633,1725207036136,-500.0,0.00024657,2]
[336841634,1725207036145,-500.0,0.00024657,2]
[336841635,1725207036164,-222.83622832,0.00024657,2]
[336841636,1725207036174,-500.0,0.00024657,2]
[336841637,1725207036184,-500.0,0.00024657,2]
[336841638,1725207036193,-500.07135232,0.00024657,2]
[336841639,1725207036203,-500.0,0.00024657,2]
[336841640,1725207036213,-500.0,0.00024657,2]
[336841641,1725207036222,-1737.72,0.00024657,2]
[336841642,1725207036232,-500.0,0.00024657,2]
[336841643,1725207036242,-502.18899427,0.00024657,2]
[336841644,1725207036252,-500.0,0.00024657,2]
[336841645,1725207036262,-500.0,0.00024657,2]
[336841646,1725207036271,-500.0,0.00024657,2]
[336841647,1725207036281,-500.0,0.00024657,2]
[336841648,1725207036290,-500.0,0.00024657,2]
[336841649,1725207036300,-500.0,0.00024657,2]
[336841650,1725207036309,-500.0,0.00024657,2]
[336841651,1725207036319,-500.0,0.00024657,2]
[336841652,1725207036328,-500.0,0.00024657,2]
[336841653,1725207036339,-500.0,0.00024657,2]
[336841654,1725207036348,-500.0,0.00024657,2]
[336841655,1725207036359,-500.0,0.00024657,2]
[336841656,1725207036369,-500.0,0.00024657,2]
[336841657,1725207036379,-2448.05,0.00024657,2]
[336841658,1725207036389,-500.0,0.00024657,2]
[336841659,1725207036403,-500.0,0.00024657,2]
[336841660,1725207036413,-500.0,0.00024657,2]
[336841661,1725207036423,-500.0,0.00024657,2]
[336841662,1725207036433,-500.0,0.00024657,2]
[336841663,1725207036444,-500.0,0.00024657,2]
[336841664,1725207036454,-500.0,0.00024657,2]
[336841665,1725207036465,-500.0,0.00024657,2]
[336841666,1725207036475,-500.0,0.00024657,2]
[336841667,1725207036485,-1271.5,0.00024657,2]
[336841668,1725207036495,-500.0,0.00024657,2]
[336841669,1725207036507,-500.0,0.00024657,2]
[336841670,1725207036516,-500.0,0.00024657,2]
[336841671,1725207036527,-500.0,0.00024657,2]
[336841672,1725207036536,-436.7062367,0.00024657,2]
[336841673,1725207036545,-500.0,0.00024657,2]
[336841674,1725207036556,-500.0,0.00024657,2]
[336841675,1725207036565,-500.0,0.00024657,2]
[336841676,1725207036575,-553.65,0.00024657,2]
[336841677,1725207036584,-2823.42,0.00024657,2]
[336841678,1725207036593,-543.68,0.00024657,2]
[336841679,1725207036602,-500.0,0.00024657,2]
[336841680,1725207036611,-500.0,0.00024657,2]
[336841681,1725207036620,-500.0,0.00024657,2]
[336841682,1725207036630,-500.0,0.00024657,2]
[336841683,1725207036639,-564.41,0.00024657,2]
[336841684,1725207036650,-500.0,0.00024657,2]
[336841685,1725207036659,-500.60287516,0.00024657,2]
[336841686,1725207036668,-1144.44,0.00024657,2]
[336841687,1725207036678,-1526.39,0.00024657,2]
[336841688,1725207036688,-500.0,0.00024657,2]
[336841689,1725207036697,-500.0,0.00024657,2]
[336841690,1725207036707,-500.0,0.00024657,2]
[336841691,1725207036716,-754.03,0.00024657,2]
[336841692,1725207036725,-500.0,0.00024657,2]
[336841693,1725207036735,-500.0,0.00024657,2]
[336841694,1725207036744,-500.0,0.00024657,2]
[336841695,1725207036754,-1104.49,0.00024657,2]
[336841696,1725207036763,-500.0,0.00024657,2]
[336841697,1725207036774,-500.0,0.00024657,2]
[336841698,1725207036787,-500.0,0.00024657,2]
[336841699,1725207036797,-500.0,0.00024657,2]
[336841700,1725207036807,-500.0,0.00024657,2]
[336841701,1725207036818,-500.0,0.00024657,2]
[336841702,1725207036827,-804.5,0.00024657,2]
[336841703,1725207036836,-500.0,0.00024657,2]
[336841704,1725207036846,-590.06,0.00024657,2]
[336841705,1725207036856,-1701.42,0.00024657,2]
[336841706,1725207036866,-500.0,0.00024657,2]
[336841707,1725207036876,-2030.74,0.00024657,2]
[336841708,1725207036887,-500.0,0.00024657,2]
[336841709,1725207036898,-500.0,0.00024657,2]
[336841710,1725207036911,-500.0,0.00024657,2]
[336841711,1725207036923,-1144.29,0.00024657,2]
[336841712,1725207036932,-500.0,0.00024657,2]
[336841713,1725207036943,-500.0,0.00024657,2]
[336841714,1725207036952,-500.0,0.00024657,2]
[336841715,1725207036962,-1835.53,0.00024657,2]
[336841716,1725207036971,-1698.89,0.00024657,2]
[336841717,1725207036980,-500.0,0.00024657,2]
[336841718,1725207036989,-500.0,0.00024657,2]
[336841719,1725207036999,-903.93,0.00024657,2]
[336841720,1725207037009,-501.39875595,0.00024657,2]
[336841721,1725207037018,-500.0,0.00024657,2]
[336841722,1725207037029,-3954.21,0.00024657,2]
[336841723,1725207037039,-3954.21,0.00024657,2]
[336841724,1725207037048,-3954.21,0.00024657,2]
[336841725,1725207037059,-3954.21,0.00024657,2]
[336841726,1725207037068,-3954.21,0.00024657,2]
[336841727,1725207037078,-3954.21,0.00024657,2]
[336841728,1725207037087,-3954.21,0.00024657,2]
[336841729,1725207037097,-672.46,0.00024657,2]
[336841730,1725207037107,-3954.21,0.00024657,2]
[336841731,1725207037117,-3954.21,0.00024657,2]
[336841732,1725207037126,-500.0,0.00024657,2]
[336841733,1725207037136,-500.0,0.00024657,2]
[336841734,1725207037145,-500.0,0.00024657,2]
[336841735,1725207037157,-657.15,0.00024657,2]
[336841736,1725207037170,-500.0,0.00024657,2]
[336841737,1725207037179,-500.0,0.00024657,2]
[336841738,1725207037189,-502.76,0.00024657,2]
[336841739,1725207037198,-627.5,0.00024657,2]
[336841740,1725207037207,-2559.06,0.00024657,2]
[336841741,1725207037217,-500.0,0.00024657,2]
[336841742,1725207037226,-500.0,0.00024657,2]
[336841743,1725207037236,-2739.7,0.00024657,2]
[336841744,1725207037245,-761.41,0.00024657,2]
[336841745,1725207037255,-500.0,0.00024657,2]
[336841746,1725207037265,-500.0,0.00024657,2]
[336841747,1725207037276,-500.0,0.00024657,2]
[336841748,1725207037285,-506.66670879,0.00024657,2]
[336841749,1725207037295,-500.0,0.00024657,2]
[336841750,1725207037304,-2186.58,0.00024657,2]
[336841751,1725207037313,-503.37921185,0.00024657,2]
[336841752,1725207037322,-547.5811852,0.00024657,2]
[336841753,1725207037332,-500.0,0.00024657,2]
[336841754,1725207037341,-500.0,0.00024657,2]
[336841755,1725207037351,-500.0,0.00024657,2]
[336841756,1725207037360,-628.26,0.00024657,2]
[336841757,1725207037370,-1566.88,0.00024657,2]
[336841758,1725207037380,-222.35690471,0.00024657,2]
[336841759,1725207037389,-501.50534477,0.00024657,2]
[336841760,1725207037400,-500.0,0.00024657,2]
[336841761,1725207037410,-1062.55,0.00024657,2]
[336841762,1725207037419,-500.0,0.00024657,2]
[336841763,1725207037429,-500.0,0.00024657,2]
[336841764,1725207037438,-500.0,0.00024657,2]
[336841765,1725207037448,-503.4257431,0.00024657,2]
[336841766,1725207037457,-500.0,0.00024657,2]
[336841767,1725207037466,-1793.06,0.00024657,2]
[336841768,1725207037476,-500.0,0.00024657,2]
[336841769,1725207037522,-500.0,0.00024657,2]
[336841770,1725207037531,-500.0,0.00024657,2]
[336841771,1725207037541,-997.13,0.00024657,2]
[336841772,1725207037550,-500.0,0.00024657,2]
[336841773,1725207037559,-500.0,0.00024657,2]
[336841774,1725207037568,-500.0,0.00024657,2]
[336841775,1725207037577,-3981.28,0.00024657,2]
[336841776,1725207037586,-649.05,0.00024657,2]
[336841777,1725207037595,-844.54,0.00024657,2]
[336841778,1725207037604,-500.0,0.00024657,2]
[336841779,1725207037613,-505.74,0.00024657,2]
[336841780,1725207037623,-615.33,0.00024657,2]
[336841781,1725207037632,-635.94,0.00024657,2]
[336841782,1725207037640,-500.0,0.00024657,2]
[336841783,1725207037650,-500.0,0.00024657,2]
[336841784,1725207037660,-295.31199574,0.00024657,2]
[336841785,1725207037670,-500.0,0.00024657,2]
[336841786,1725207037680,-2445.06,0.00024657,2]
[336841787,1725207037691,-14359.71,0.00024657,2]
[336841788,1725207037701,-500.0,0.00024657,2]
[336841789,1725207037711,-500.0,0.00024657,2]
[336841790,1725207037720,-500.0,0.00024657,2]